bitfinex/quotes_SOLUSD_20250531
["timestamp","ask_amount","ask_price","bid_price","bid_amount"]
[1748679999392,18.43640986,154.91,154.87,35.28637877]
[1748679999599,18.43640986,154.9,154.87,35.28637877]
[1748679999983,153.3545442,154.93,154.87,35.28637877]
[1748679999984,18.43640986,154.91,154.87,35.28637877]
[1748680000585,18.43640986,154.9,154.87,35.28637877]
[1748680002089,18.43640986,154.91,154.87,35.28637877]
[1748680004879,18.43640986,154.91,154.87,53.72278863]
[1748680005408,18.43640986,154.91,154.87,35.28637877]
[1748680009418,146.9,154.93,154.87,35.28637877]
[1748680009419,18.43640986,154.9,154.87,35.28637877]
[1748680009607,18.43640986,154.92,154.87,53.72278863]
[1748680009989,18.43640986,154.91,154.87,35.28637877]
[1748680012002,18.43640986,154.9,154.87,35.28637877]
[1748680012913,18.43640986,154.88,154.82,10.18]
[1748680013114,18.43640986,154.85,154.82,10.18]
[1748680013330,18.43640986,154.86,154.82,10.18]
[1748680013493,18.43640986,154.86,154.83,6.45869663]
[1748680014496,18.43640986,154.87,154.83,6.45869663]
[1748680014696,146.9,154.88,154.84,37.08605872]
[1748680015424,146.9,154.88,154.86,25.10669788]
[1748680015627,158.63805938,154.93,154.87,0.14216157]
[1748680015936,18.43640986,154.91,154.87,18.57857143]
[1748680016097,18.43640986,154.92,154.87,18.57857143]
[1748680017414,18.43640986,154.92,154.89,18.64964886]
[1748680018613,18.43640986,154.92,154.89,25.1056904]
[1748680019421,146.9,154.97,154.91,18.43640986]
[1748680019598,146.9,154.97,154.94,18.43640986]
[1748680019791,165.33640986,154.97,154.93,18.64964886]
[1748680020024,18.43640986,154.95,154.92,10.18]
[1748680020529,18.43640986,154.96,154.92,10.18]
[1748680020820,18.43640986,154.96,154.92,16.63483084]
[1748680021123,18.43640986,154.95,154.92,16.63483084]
[1748680021527,18.43640986,154.95,154.92,10.18]
[1748680021827,18.43640986,154.95,154.92,16.63494242]
[1748680022240,153.3529196,154.97,154.92,16.63494242]
[1748680022241,18.43640986,154.96,154.92,16.63494242]
[1748680023199,146.9,154.97,154.92,10.18]
[1748680023200,18.43640986,154.95,154.92,10.18]
[1748680023417,18.43640986,154.94,154.92,10.18]
[1748680023610,18.43640986,154.94,154.91,25.10495784]
[1748680024017,18.43640986,154.96,154.92,18.64964886]
[1748680024727,165.33640986,154.97,154.92,37.08605872]
[1748680025104,165.33640986,154.97,154.93,6.45452785]
[1748680026002,146.9,154.97,154.94,18.64964886]
[1748680026237,165.33640986,155.01,154.96,37.08605872]
[1748680027041,165.33640986,155.01,154.97,6.45286184]
[1748680028828,165.33640986,155.01,154.97,24.8892717]
[1748680030899,165.33640986,155.01,154.97,18.43640986]
[1748680031137,165.33640986,155.01,154.96,43.539257]
[1748680031540,171.78777401,155.01,154.96,43.539257]
[1748680031740,18.43640986,154.99,154.94,6.45403975]
[1748680031936,18.43640986,154.98,154.95,18.64964886]
[1748680032106,18.43640986,154.97,154.94,18.64964886]
[1748680034335,24.88945215,154.97,154.93,10.18]
[1748680034511,18.43640986,154.97,154.93,16.63446708]
[1748680034711,18.43640986,154.97,154.93,10.18]
[1748680034909,18.43640986,154.97,154.93,16.63447073]
[1748680035928,18.43640986,154.96,154.93,10.18]
[1748680037435,18.43640986,154.96,154.93,16.63438027]
[1748680040647,18.43640986,154.97,154.94,18.64964886]
[1748680040822,146.9,154.98,154.95,18.57857143]
[1748680042759,146.9,154.98,154.97,18.64964886]
[1748680043315,18.43640986,155.0,154.97,18.64964886]
[1748680043745,18.43640986,154.99,154.96,18.64964886]
[1748680043940,18.43640986,154.98,154.94,18.64964886]
[1748680044260,18.43640986,154.99,154.94,37.08605872]
[1748680045031,18.43640986,154.99,154.94,43.53998345]
[1748680045546,18.43640986,154.98,154.94,25.10357359]
[1748680046723,18.43640986,154.98,154.94,43.53998345]
[1748680048225,18.43640986,154.97,154.94,25.10357359]
[1748680048449,6.45210102,154.99,154.94,25.10357359]
[1748680048450,18.43640986,154.98,154.94,25.10357359]
[1748680048836,18.43640986,154.99,154.94,43.53998345]
[1748680049655,18.43640986,155.0,154.97,6.45286184]
[1748680049961,165.33640986,155.01,154.97,6.45286184]
[1748680050357,165.33640986,155.01,154.98,18.43640986]
[1748680050358,146.9,155.01,154.98,18.43640986]
[1748680050534,146.9,155.01,154.99,18.43640986]
[1748680051525,146.9,155.01,155.0,6.4516129]
[1748680052030,165.33640986,155.06,155.0,43.53767162]
[1748680052354,18.43640986,155.05,155.02,18.64964886]
[1748680054252,165.33640986,155.06,155.02,18.64964886]
[1748680055038,18.43640986,155.05,155.02,18.64964886]
[1748680055935,18.43640986,155.04,155.0,25.10124156]
[1748680056134,18.43640986,155.05,155.0,43.53765142]
[1748680056536,165.33640986,155.06,155.01,18.43640986]
[1748680058540,146.9,155.06,155.02,6.45078054]
[1748680058948,165.33640986,155.06,155.02,6.45078054]
[1748680060555,18.43640986,155.05,155.01,25.10084555]
[1748680061555,24.88605123,155.05,155.01,18.64964886]
[1748680061768,24.88605123,155.05,154.98,16.63234798]
[1748680061769,18.43640986,155.02,154.98,16.63234798]
[1748680062055,18.43640986,155.01,154.99,18.64964886]
[1748680062556,18.43640986,155.02,154.99,18.64964886]
[1748680064442,18.43640986,155.01,154.99,18.64964886]
[1748680065752,24.88761614,155.01,154.98,10.18]
[1748680065947,18.43640986,155.0,154.98,10.18]
[1748680066548,18.43640986,155.0,154.97,18.64964886]
[1748680066961,18.43640986,154.98,154.95,18.64964886]
[1748680069466,18.43640986,154.97,154.95,18.64964886]
[1748680069760,18.43640986,154.98,154.95,18.64964886]
[1748680070963,18.43640986,154.97,154.95,18.64964886]
[1748680073050,146.9,155.0,154.95,18.64964886]
[1748680073051,18.43640986,154.96,154.95,18.64964886]
[1748680073249,18.43640986,154.96,154.91,18.64964886]
[1748680073455,18.43640986,154.95,154.91,18.64964886]
[1748680074052,18.43640986,154.95,154.91,25.10487256]
[1748680074463,18.43640986,154.96,154.91,43.54128242]
[1748680076559,18.43640986,154.97,154.94,18.64964886]
[1748680076780,18.43640986,154.99,154.94,37.08605872]
[1748680077474,18.43640986,154.99,154.94,18.64964886]
[1748680077651,18.43640986,154.99,154.94,47.22605872]
[1748680078457,18.43640986,154.98,154.94,28.78964886]
[1748680078877,18.43640986,154.98,154.95,6.45369474]
[1748680079672,18.43640986,154.98,154.94,16.59399498]
[1748680079849,18.43640986,154.97,154.95,18.64964886]
[1748680080255,18.43640986,154.98,154.95,18.64964886]
[1748680080680,18.43640986,154.99,154.95,18.64964886]
[1748680081278,18.43640986,154.99,154.95,25.10301985]
[1748680081584,18.43640986,154.98,154.95,25.10301985]
[1748680081798,18.43640986,154.98,154.94,35.2436413]
[1748680081984,18.43640986,154.98,154.95,18.64964886]
[1748680083478,18.43640986,154.97,154.95,18.64964886]
[1748680083788,6.45218095,154.99,154.94,10.14]
[1748680083789,18.43640986,154.96,154.94,10.14]
[1748680083987,179.35173334,155.0,154.94,10.14]
[1748680084190,18.43640986,154.98,154.94,16.59405262]
[1748680084483,18.43640986,154.99,154.94,53.68011134]
[1748680084861,18.43640986,154.99,154.95,18.64964886]
[1748680085060,165.33640986,155.0,154.96,6.45327826]
[1748680085260,146.9,155.0,154.97,18.64964886]
[1748680085485,18.43640986,155.01,154.97,18.64964886]
[1748680086120,18.43640986,155.02,154.97,37.08605872]
[1748680087172,18.43640986,155.02,154.99,18.64964886]
[1748680087367,18.43640986,155.01,154.99,18.64964886]
[1748680087892,18.43640986,155.01,154.97,25.10245305]
[1748680088061,18.43640986,155.02,154.97,43.53886291]
[1748680088266,18.43640986,155.02,154.98,18.64964886]
[1748680089999,18.43640986,155.02,154.97,25.10245305]
[1748680090182,18.43640986,155.01,154.97,25.10245305]
[1748680090386,18.43640986,155.02,154.97,25.10245305]
[1748680091188,18.43640986,155.02,154.97,43.53886291]
[1748680093200,18.43640986,155.02,154.97,25.10245305]
[1748680093773,18.43640986,155.01,154.97,25.10245305]
[1748680094572,18.43640986,155.02,154.97,43.53886291]
[1748680095996,18.43640986,155.01,154.98,18.64964886]
[1748680096296,18.43640986,155.01,154.98,25.10208226]
[1748680096505,18.43640986,155.02,154.98,25.10208226]
[1748680097201,18.43640986,155.02,154.98,18.64964886]
[1748680098600,18.43640986,155.0,154.96,18.64964886]
[1748680099712,6.45107948,155.02,154.96,18.43640986]
[1748680099713,18.43640986,155.01,154.96,18.43640986]
[1748680100997,18.43640986,155.01,154.97,6.45286184]
[1748680101908,18.43640986,155.0,154.97,18.64964886]
[1748680102495,18.43640986,155.0,154.96,6.45327642]
[1748680103416,18.43640986,155.0,154.95,37.08605872]
[1748680103417,18.43640986,154.98,154.95,18.64964886]
[1748680103708,18.43640986,154.97,154.95,18.64964886]
[1748680103894,18.43640986,154.97,154.94,10.14]
[1748680105103,18.43640986,154.97,154.93,18.64964886]
[1748680105515,18.43640986,154.96,154.93,18.64964886]
[1748680107513,18.43640986,154.95,154.92,18.64964886]
[1748680109684,18.43640986,154.95,154.92,6.45485944]
[1748680109885,18.43640986,154.96,154.92,6.45485944]
[1748680110088,18.43640986,154.96,154.93,18.64964886]
[1748680111132,18.43640986,154.96,154.92,6.45485944]
[1748680111523,18.43640986,154.95,154.92,6.45485944]
[1748680112409,18.43640986,154.94,154.91,18.64964886]
[1748680112614,18.43640986,154.93,154.91,18.64964886]
[1748680116040,18.43640986,154.94,154.91,18.64964886]
[1748680116838,18.43640986,154.93,154.91,18.64964886]
[1748680117733,18.43640986,154.94,154.91,18.64964886]
[1748680119237,6.45377317,154.95,154.91,18.64964886]
[1748680119533,18.43640986,154.94,154.91,25.10498288]
[1748680119742,18.43640986,154.94,154.91,18.64964886]
[1748680121040,18.43640986,154.92,154.9,10.16]
[1748680121541,18.43640986,154.93,154.9,10.16]
[1748680124548,146.9,154.96,154.92,18.43640986]
[1748680124852,146.9,154.96,154.91,18.64964886]
[1748680124853,146.9,154.96,154.95,18.64964886]
[1748680125153,18.43640986,154.99,154.95,18.64964886]
[1748680125448,18.43640986,154.98,154.95,18.64964886]
[1748680127234,18.43640986,154.98,154.95,25.10328252]
[1748680128951,18.43640986,154.98,154.95,18.64964886]
[1748680129150,154.99576085,155.0,154.9,10.16]
[1748680129151,18.43640986,154.96,154.9,10.16]
[1748680129352,18.43640986,154.94,154.91,18.64964886]
[1748680129734,18.43640986,154.95,154.91,18.64964886]
[1748680130135,18.43640986,154.95,154.91,43.54140807]
[1748680130738,18.43640986,154.95,154.91,25.10499821]
[1748680131651,153.35320022,154.97,154.91,43.54140807]
[1748680131867,18.43640986,154.96,154.91,43.54140807]
[1748680132363,146.9,154.97,154.93,37.08605872]
[1748680132831,165.33640986,154.97,154.93,25.10388136]
[1748680133742,146.9,154.97,154.93,43.54029122]
[1748680135655,165.33640986,154.97,154.93,25.10388136]
[1748680140565,146.9,154.97,154.93,43.54029122]
[1748680141671,146.9,154.97,154.96,18.64964886]
[1748680141976,146.9,154.97,154.95,18.64964886]
[1748680143173,165.33640986,154.97,154.95,18.64964886]
[1748680143687,18.43640986,154.96,154.93,18.64964886]
[1748680143869,18.43640986,154.95,154.93,18.64964886]
[1748680144285,18.43640986,154.96,154.93,18.64964886]
[1748680145077,165.33640986,154.97,154.93,25.10407316]
[1748680146218,146.9,154.97,154.94,18.43640986]
[1748680147765,146.9,154.97,154.96,18.64964886]
[1748680150085,146.9,154.97,154.96,6.45327826]
[1748680151889,146.9,154.97,154.96,18.64964886]
[1748680152595,165.33640986,154.97,154.94,25.10376012]
[1748680152799,18.43640986,154.96,154.94,18.64964886]
[1748680153099,18.43640986,154.96,154.93,6.45435694]
[1748680154184,18.43640986,154.94,154.91,18.64964886]
[1748680154392,18.43640986,154.93,154.9,10.16]
[1748680154972,18.43640986,154.94,154.91,18.64964886]
[1748680156785,18.43640986,154.94,154.91,25.10497126]
[1748680157792,18.43640986,154.94,154.91,18.64964886]
[1748680158300,18.43640986,154.94,154.91,25.10491197]
[1748680158506,165.33640986,154.95,154.91,25.10491197]
[1748680158907,165.33640986,154.95,154.91,18.64964886]
[1748680159111,18.43640986,154.94,154.91,18.64964886]
[1748680160810,18.43640986,154.94,154.91,25.1049304]
[1748680161519,18.43640986,154.94,154.91,18.64964886]
[1748680162117,18.43640986,154.92,154.87,18.64964886]
[1748680162295,18.43640986,154.91,154.87,18.64964886]
[1748680163704,18.43640986,154.91,154.87,25.10661714]
[1748680164108,18.43640986,154.9,154.87,18.64964886]
[1748680164831,18.43640986,154.9,154.87,25.10663886]
[1748680165907,18.43640986,154.91,154.87,25.10663886]
[1748680167233,7.96067441,154.93,154.87,43.54304872]
[1748680167532,18.43640986,154.91,154.87,25.10663886]
[1748680168837,24.89177581,154.91,154.87,18.64964886]
[1748680169599,18.43640986,154.9,154.87,18.64964886]
[1748680174540,18.43640986,154.88,154.86,10.12]
[1748680174845,6.45584645,154.9,154.86,10.12]
[1748680174846,146.9,154.89,154.86,10.12]
[1748680175133,146.9,154.89,154.87,18.64964886]
[1748680176246,146.9,154.89,154.87,25.10654073]
[1748680179310,146.9,154.89,154.88,18.43640986]
[1748680179821,146.9,154.89,154.87,43.54295059]
[1748680182336,18.43640986,154.92,154.87,43.54295059]
[1748680184450,18.43640986,154.91,154.87,25.10654073]
[1748680185320,18.43640986,154.92,154.87,59.68552177]
[1748680188633,18.43640986,154.92,154.87,41.24911191]
[1748680189058,18.43640986,154.91,154.87,41.24911191]
[1748680190037,11.7359056,154.91,154.87,41.24911191]
[1748680192950,11.7359056,154.9,154.87,25.10654073]
[1748680195637,11.7359056,154.89,154.87,6.45689187]
[1748680196352,11.7359056,154.9,154.87,6.45689187]
[1748680198957,11.7359056,154.89,154.87,6.45689187]
[1748680200431,11.7359056,154.88,154.83,18.64964886]
[1748680200672,11.7359056,154.86,154.83,18.64964886]
[1748680201542,11.7359056,154.86,154.84,6.45827951]
[1748680201848,11.7359056,154.85,154.82,10.12]
[1748680202156,11.7359056,154.84,154.81,6.45953103]
[1748680203263,11.7359056,154.83,154.81,6.45953103]
[1748680204040,18.35413487,154.83,154.81,6.45953103]
[1748680204239,18.35413487,154.82,154.8,25.10952259]
[1748680210467,18.35413487,154.81,154.8,25.10952259]
[1748680210670,18.35413487,154.81,154.79,6.46023483]
[1748680212680,18.35413487,154.8,154.78,16.58071868]
[1748680212864,18.35413487,154.81,154.78,16.58071868]
[1748680213469,18.35413487,154.8,154.78,16.58071868]
[1748680214571,153.35836546,154.84,154.77,25.11071994]
[1748680214572,18.35413487,154.79,154.77,25.11071994]
[1748680214779,6.45926158,154.82,154.77,25.11071994]
[1748680214780,18.35413487,154.78,154.77,25.11071994]
[1748680214957,18.35413487,154.78,154.76,18.64964886]
[1748680215161,18.35413487,154.78,154.75,6.46203554]
[1748680215360,18.35413487,154.77,154.74,16.58243536]
[1748680218659,148.4419,154.81,154.75,25.11150664]
[1748680218660,18.35413487,154.78,154.75,25.11150664]
[1748680221489,14.8566566,154.78,154.75,25.11150664]
[1748680221872,18.35413487,154.77,154.74,16.58229043]
[1748680222592,18.35413487,154.75,154.73,25.11242647]
[1748680223469,18.35413487,154.75,154.73,18.64964886]
[1748680224584,6.46108471,154.78,154.73,6.46286795]
[1748680224889,18.35413487,154.75,154.73,6.46286795]
[1748680225095,18.35413487,154.75,154.73,18.64964886]
[1748680225773,18.35413487,154.74,154.71,6.46356616]
[1748680226101,18.35413487,154.74,154.72,18.64964886]
[1748680227801,18.35413487,154.74,154.72,25.11284857]
[1748680228662,18.35413487,154.75,154.72,25.11284857]
[1748680229873,18.35413487,154.75,154.72,18.64964886]
[1748680230484,18.35413487,154.75,154.72,25.11281634]
[1748680231105,146.9,154.77,154.74,18.64964886]
[1748680231319,148.4419,154.81,154.76,18.35413487]
[1748680231468,148.4419,154.81,154.79,18.64964886]
[1748680231469,146.9,154.81,154.79,18.64964886]
[1748680231979,18.35413487,154.8,154.77,18.64964886]
[1748680232183,165.25413487,154.81,154.77,18.64964886]
[1748680232381,146.9,154.81,154.79,18.35413487]
[1748680233704,146.9,154.81,154.8,25.10959718]
[1748680235706,202.30681564,154.85,154.81,25.10881735]
[1748680236785,18.35413487,154.84,154.81,25.10881735]
[1748680237616,18.35413487,154.84,154.8,25.1094377]
[1748680237845,183.95268077,154.85,154.81,18.64964886]
[1748680237987,183.95268077,154.85,154.84,37.00378373]
[1748680237988,146.9,154.85,154.84,37.00378373]
[1748680238282,146.9,154.89,154.84,37.00378373]
[1748680238490,146.9,154.89,154.86,18.64964886]
[1748680240409,165.25413487,154.89,154.86,18.64964886]
[1748680242303,146.9,154.89,154.86,43.46115709]
[1748680243423,146.9,154.89,154.86,18.64964886]
[1748680243722,18.35413487,154.88,154.85,10.12]
[1748680243939,18.35413487,154.86,154.82,18.64964886]
[1748680245012,18.35413487,154.86,154.82,25.10876219]
[1748680245222,18.35413487,154.86,154.82,43.46289706]
[1748680247321,18.35413487,154.86,154.82,25.10876219]
[1748680248237,18.35413487,154.87,154.82,43.46289706]
[1748680250116,18.35413487,154.87,154.84,6.45827951]
[1748680250317,146.9,154.89,154.86,18.35413487]
[1748680250939,146.9,154.89,154.85,18.35413487]
[1748680251134,165.25413487,154.89,154.85,18.64964886]
[1748680252337,165.25413487,154.89,154.85,25.10745465]
[1748680252937,146.9,154.89,154.85,43.46158952]
[1748680254356,146.9,154.89,154.83,39.32]
[1748680254357,146.9,154.89,154.87,18.64964886]
[1748680257260,146.9,154.89,154.86,18.64964886]
[1748680257758,146.9,154.89,154.86,37.00378373]
[1748680259134,146.9,154.89,154.88,18.64964886]
[1748680261149,146.9,154.89,154.88,25.10626043]
[1748680262055,146.9,154.89,154.88,18.64964886]
[1748680263062,146.9,154.89,154.86,28.47413487]
[1748680263277,18.35413487,154.88,154.84,24.81213152]
[1748680263458,18.35413487,154.88,154.82,10.12]
[1748680263459,18.35413487,154.88,154.85,18.64964886]
[1748680264849,146.9,154.89,154.87,18.64964886]
[1748680265063,146.9,154.89,154.87,37.00378373]
[1748680265240,18.35413487,154.92,154.87,43.46064841]
[1748680265436,24.80914246,154.92,154.87,43.46064841]
[1748680267338,18.35413487,154.92,154.87,43.46064841]
[1748680267539,171.70878757,154.93,154.88,18.35413487]
[1748680268074,165.25413487,154.93,154.88,18.35413487]
[1748680269871,171.70873049,154.93,154.89,18.64964886]
[1748680273879,18.35413487,154.91,154.88,18.64964886]
[1748680276256,24.80978915,154.91,154.88,18.64964886]
[1748680276469,18.35413487,154.89,154.88,18.64964886]
[1748680276684,18.35413487,154.89,154.85,18.64964886]
[1748680278166,24.81050781,154.89,154.85,18.64964886]
[1748680278385,18.35413487,154.88,154.85,18.64964886]
[1748680279392,24.81074761,154.88,154.84,18.64964886]
[1748680279690,18.35413487,154.88,154.84,18.64964886]
[1748680280865,24.81046826,154.89,154.84,37.00378373]
[1748680281285,165.25413487,154.9,154.85,18.35413487]
[1748680282787,171.70998612,154.9,154.85,18.35413487]
[1748680283179,18.35413487,154.89,154.85,18.35413487]
[1748680283489,24.81034525,154.89,154.85,18.35413487]
[1748680283691,18.35413487,154.88,154.84,37.00378373]
[1748680283991,18.35413487,154.88,154.83,10.12]
[1748680284166,18.35413487,154.86,154.84,18.64964886]
[1748680284566,18.35413487,154.87,154.84,18.64964886]
[1748680287290,18.35413487,154.88,154.84,18.64964886]
[1748680287495,153.35581492,154.9,154.86,18.64964886]
[1748680287688,18.35413487,154.89,154.86,18.64964886]
[1748680288007,24.81064449,154.89,154.84,37.00378373]
[1748680289291,18.35413487,154.89,154.84,43.46190975]
[1748680290779,24.81039155,154.89,154.84,43.46190975]
[1748680292396,18.35413487,154.89,154.84,43.46190975]
[1748680293690,24.81044496,154.89,154.84,43.46190975]
[1748680297704,18.35413487,154.87,154.84,18.64964886]
[1748680299690,18.35413487,154.88,154.84,18.64964886]
[1748680299904,146.9,154.9,154.85,18.35413487]
[1748680299905,165.25413487,154.9,154.85,18.35413487]
[1748680300392,165.25413487,154.9,154.86,18.64964886]
[1748680301000,146.9,154.9,154.88,18.64964886]
[1748680301316,146.9,154.9,154.89,6.45619471]
[1748680302798,146.9,154.9,154.88,18.64964886]
[1748680303393,146.9,154.9,154.89,37.1459453]
[1748680303600,11.70445505,154.94,154.9,18.64964886]
[1748680303912,11.70445505,154.94,154.93,18.64964886]
[1748680304303,11.70445505,154.94,154.92,18.64964886]
[1748680306126,11.70445505,154.94,154.93,18.64964886]
[1748680306531,11.70445505,154.94,154.92,18.35413487]
[1748680306735,146.9,154.99,154.93,48.8803453]
[1748680306919,146.9,154.99,154.98,37.1459453]
[1748680307106,24.80371875,155.05,154.99,18.64964886]
[1748680307312,24.80371875,155.05,155.0,18.35413487]
[1748680307517,18.35413487,155.02,154.98,28.76964886]
[1748680307747,6.44958388,155.05,154.98,47.12378373]
[1748680307748,18.35413487,155.03,154.98,47.12378373]
[1748680307942,18.35413487,155.03,154.99,18.35413487]
[1748680309019,24.80459781,155.03,154.99,18.35413487]
[1748680310716,26.0,155.06,155.0,37.00378373]
[1748680310717,18.35413487,155.04,155.0,37.00378373]
[1748680312232,24.80433178,155.04,155.0,37.00378373]
[1748680314154,24.80433178,155.04,154.98,16.57236669]
[1748680314155,18.35413487,155.03,154.98,28.47413487]
[1748680314337,18.35413487,155.03,154.99,18.64964886]
[1748680316855,24.80491541,155.02,154.99,18.64964886]
[1748680317743,6.45078054,155.02,154.99,18.64964886]
[1748680320767,24.80491541,155.02,154.99,18.64964886]
[1748680321479,6.45078054,155.02,154.99,18.64964886]
[1748680322351,171.70427031,155.04,155.0,18.35413487]
[1748680324178,171.70427031,155.04,154.99,37.00378373]
[1748680326144,171.70427031,155.04,154.99,43.45564158]
[1748680326345,24.80254242,155.08,155.03,37.00378373]
[1748680326554,24.80254242,155.08,155.05,18.64964886]
[1748680327081,24.80254242,155.08,155.02,37.00378373]
[1748680327082,18.35413487,155.07,155.02,37.00378373]
[1748680327981,6.44911647,155.06,155.02,37.00378373]
[1748680330580,18.35413487,155.04,154.97,6.332]
[1748680330785,18.35413487,155.02,154.99,18.64964886]
[1748680331006,18.35413487,155.02,154.97,28.45413487]
[1748680331188,18.35413487,155.01,154.98,18.64964886]
[1748680331389,40.7866,155.04,154.98,18.64964886]
[1748680331390,18.35413487,155.0,154.98,18.64964886]
[1748680331713,18.35413487,154.99,154.94,18.35413487]
[1748680331978,18.35413487,154.97,154.95,18.64964886]
[1748680332183,18.35413487,154.96,154.9,18.35413487]
[1748680332392,18.35413487,154.95,154.9,18.35413487]
[1748680332562,18.35413487,154.95,154.91,18.64964886]
[1748680332762,24.80791231,154.95,154.91,37.00378373]
[1748680332975,24.80791231,154.95,154.9,37.00378373]
[1748680334075,18.35413487,154.95,154.9,43.45954994]
[1748680334277,24.80789408,154.95,154.9,37.00378373]
[1748680335294,18.35413487,154.94,154.9,18.64964886]
[1748680335487,18.35413487,154.93,154.9,18.64964886]
[1748680336085,18.35413487,154.94,154.9,18.64964886]
[1748680336275,18.35413487,154.94,154.9,37.00378373]
[1748680336876,18.35413487,154.94,154.9,18.64964886]
[1748680338578,153.35375921,154.95,154.9,18.64964886]
[1748680338579,165.25413487,154.95,154.9,43.45930855]
[1748680338781,146.9,154.95,154.91,18.35413487]
[1748680339016,165.25413487,154.95,154.91,18.35413487]
[1748680339686,146.9,154.95,154.93,18.64964886]
[1748680339933,146.9,154.95,154.93,43.45830648]
[1748680340278,146.9,154.95,154.94,37.00378373]
[1748680340522,171.70629358,154.99,154.94,37.00378373]
[1748680340876,18.35413487,154.98,154.94,18.64964886]
[1748680341609,18.35413487,154.97,154.94,18.64964886]
[1748680343711,24.80688715,154.98,154.94,18.64964886]
[1748680344708,18.35413487,154.98,154.94,18.64964886]
[1748680344913,171.70627542,154.99,154.94,37.00378373]
[1748680345822,146.9,154.99,154.95,18.64964886]
[1748680345991,146.9,154.99,154.98,18.35413487]
[1748680346195,24.80408327,155.04,154.98,18.35413487]
[1748680346406,171.70381443,155.05,155.0,18.35413487]
[1748680347099,18.31157279,155.04,154.99,37.00378373]
[1748680347729,171.70381443,155.05,155.0,18.35413487]
[1748680348408,18.35413487,155.04,154.99,43.45558493]
[1748680350918,24.8042229,155.04,154.99,43.45558493]
[1748680352423,165.25413487,155.05,155.01,18.64964886]
[1748680353028,146.9,155.05,155.03,18.64964886]
[1748680353328,204.53413487,155.09,155.03,18.64964886]
[1748680353534,18.35413487,155.08,155.03,18.35413487]
[1748680354082,146.9,155.09,155.05,18.35413487]
[1748680354226,146.9,155.09,155.06,37.00378373]
[1748680356257,6.44454469,155.17,155.1,6.44745325]
[1748680356461,153.34419905,155.18,155.13,18.64964886]
[1748680356635,18.35413487,155.17,155.13,18.64964886]
[1748680356834,18.35413487,155.16,155.13,18.64964886]
[1748680357042,18.35413487,155.16,155.12,18.64964886]
[1748680358057,153.34419905,155.18,155.12,18.64964886]
[1748680358257,153.34419905,155.18,155.12,37.00378373]
[1748680358472,18.35413487,155.17,155.12,37.00378373]
[1748680358782,179.34419905,155.18,155.12,37.00378373]
[1748680358783,146.9,155.18,155.15,18.64964886]
[1748680359074,171.69828785,155.18,155.14,18.64964886]
[1748680359634,165.25413487,155.18,155.14,18.64964886]
[1748680360385,171.6983334,155.18,155.14,18.64964886]
[1748680360749,18.35413487,155.17,155.14,18.64964886]
[1748680360954,18.35413487,155.16,155.13,18.64964886]
[1748680361153,146.9,155.18,155.13,37.00378373]
[1748680361371,146.9,155.18,155.15,18.35413487]
[1748680361554,146.9,155.18,155.16,18.64964886]
[1748680361750,153.34249735,155.22,155.18,18.64964886]
[1748680361969,146.9,155.22,155.18,37.00378373]
[1748680362274,165.25413487,155.22,155.18,37.00378373]
[1748680362473,146.9,155.22,155.18,43.44791027]
[1748680363177,146.9,155.22,155.19,18.35413487]
[1748680363973,146.9,155.22,155.18,37.00378373]
[1748680363974,171.69666667,155.22,155.18,37.00378373]
[1748680364159,171.69666667,155.22,155.18,18.64964886]
[1748680364560,165.25413487,155.22,155.18,18.64964886]
[1748680364767,146.9,155.22,155.19,18.35413487]
[1748680365059,146.9,155.22,155.19,18.64964886]
[1748680365456,146.9,155.22,155.19,18.58946933]
[1748680365656,146.9,155.22,155.19,18.35413487]
[1748680367057,153.34249273,155.22,155.18,18.35413487]
[1748680367259,171.6966276,155.22,155.18,18.35413487]
[1748680367482,165.25413487,155.22,155.18,18.35413487]
[1748680367657,146.9,155.22,155.18,18.35413487]
[1748680367975,153.34273072,155.22,155.18,18.35413487]
[1748680369355,18.35413487,155.21,155.17,18.64964886]
[1748680369858,171.69686559,155.22,155.17,37.00378373]
[1748680371083,165.25413487,155.22,155.17,43.44823252]
[1748680371290,146.9,155.22,155.21,18.64964886]
[1748680372555,50.7954145,155.25,155.21,18.64964886]
[1748680373853,148.4382,155.27,155.23,37.00378373]
[1748680374058,146.9,155.27,155.25,18.64964886]
[1748680374257,24.79380892,155.29,155.25,18.64964886]
[1748680374258,6.43967405,155.29,155.25,18.64964886]
[1748680374486,24.79380892,155.29,155.25,18.64964886]
[1748680375765,6.43967405,155.29,155.25,18.64964886]
[1748680375959,6.43905963,155.31,155.27,37.00378373]
[1748680376373,6.43905963,155.31,155.27,18.64964886]
[1748680376374,24.7931945,155.31,155.27,18.64964886]
[1748680377159,6.43905963,155.31,155.27,18.64964886]
[1748680377378,24.7931945,155.31,155.27,18.64964886]
[1748680378192,6.43905963,155.31,155.27,18.35413487]